[Event "Late-Titled-Tuesday-Blitz-September-12-2023"]
[Site "Chess.com"]
[Date "2023.09.12"]
[Round "7"]
[White "Arystanner"]
[Black "Beca95"]
[Result "0-1"]
[WhiteElo "2831"]
[BlackElo "2955"]
[TimeControl "180+1"]
[EndTime "15:14:00 PDT"]
[Termination "Beca95 won by resignation"]

1. e4 {[%clk 0:02:56.3]} 1... e5 {[%clk 0:02:59.5]} 2. Nf3 {[%clk 0:02:56.4]}
2... Nc6 {[%clk 0:03:00.1]} 3. Bb5 {[%clk 0:02:57]} 3... Bc5 {[%clk 0:03:00.4]}
4. O-O {[%clk 0:02:56.1]} 4... d6 {[%clk 0:02:58.8]} 5. d4 {[%clk 0:02:55.2]}
5... exd4 {[%clk 0:02:58]} 6. Nxd4 {[%clk 0:02:55.9]} 6... Ne7 {[%clk
0:02:57.8]} 7. Be3 {[%clk 0:02:54.8]} 7... Bxd4 {[%clk 0:02:54.4]} 8. Bxd4
{[%clk 0:02:54.6]} 8... O-O {[%clk 0:02:55]} 9. Be3 {[%clk 0:02:53.1]} 9... f5
{[%clk 0:02:54.9]} 10. exf5 {[%clk 0:02:33.7]} 10... Nxf5 {[%clk 0:02:53.1]} 11.
Nc3 {[%clk 0:02:30.5]} 11... Nxe3 {[%clk 0:02:51.1]} 12. fxe3 {[%clk 0:02:31.4]}
12... Rxf1+ {[%clk 0:02:50.6]} 13. Qxf1 {[%clk 0:02:32.2]} 13... Ne5 {[%clk
0:02:49.8]} 14. Bc4+ {[%clk 0:02:27.9]} 14... Kh8 {[%clk 0:02:49.2]} 15. Bb3
{[%clk 0:02:27.6]} 15... c6 {[%clk 0:02:41.1]} 16. Rd1 {[%clk 0:02:27.2]} 16...
Qe7 {[%clk 0:02:41]} 17. Qf4 {[%clk 0:02:20.3]} 17... Bg4 {[%clk 0:02:39.9]} 18.
Rf1 {[%clk 0:02:19.6]} 18... Bh5 {[%clk 0:02:36.7]} 19. e4 {[%clk 0:02:11]}
19... Bg6 {[%clk 0:02:35.2]} 20. h3 {[%clk 0:02:10.8]} 20... h6 {[%clk
0:02:35.1]} 21. Ne2 {[%clk 0:02:07.9]} 21... Nd7 {[%clk 0:02:22.3]} 22. Ng3
{[%clk 0:01:59.3]} 22... Rf8 {[%clk 0:02:17.9]} 23. Nf5 {[%clk 0:01:53.9]} 23...
Bxf5 {[%clk 0:02:13]} 24. exf5 {[%clk 0:01:54.6]} 24... Nc5 {[%clk 0:02:03.1]}
25. Qd4 {[%clk 0:01:44.4]} 25... Qf6 {[%clk 0:01:52.5]} 26. Qxf6 {[%clk
0:01:40.1]} 26... Rxf6 {[%clk 0:01:50.3]} 27. Bc4 {[%clk 0:01:38.4]} 27... d5
{[%clk 0:01:49.9]} 28. Be2 {[%clk 0:01:38.4]} 28... Kg8 {[%clk 0:01:49.2]} 29.
g4 {[%clk 0:01:38.1]} 29... Kf8 {[%clk 0:01:47.8]} 30. Kg2 {[%clk 0:01:38.4]}
30... Rf7 {[%clk 0:01:46.3]} 31. h4 {[%clk 0:01:35.4]} 31... Re7 {[%clk
0:01:46.6]} 32. Bf3 {[%clk 0:01:35.5]} 32... Ne4 {[%clk 0:01:43.7]} 33. Bxe4
{[%clk 0:01:28]} 33... Rxe4 {[%clk 0:01:44.6]} 34. Kf3 {[%clk 0:01:28.5]} 34...
h5 {[%clk 0:01:43.3]} 35. Rg1 {[%clk 0:01:15.6]} 35... Kf7 {[%clk 0:01:40.7]}
36. b3 {[%clk 0:01:08.7]} 36... Kf6 {[%clk 0:01:28.4]} 37. a4 {[%clk 0:01:08.2]}
37... a5 {[%clk 0:01:15.5]} 38. gxh5 {[%clk 0:01:08.3]} 38... Rxh4 {[%clk
0:01:15]} 39. Rg6+ {[%clk 0:01:09]} 39... Kf7 {[%clk 0:01:10.5]} 40. Rd6 {[%clk
0:01:09.6]} 40... Rxh5 {[%clk 0:01:04.9]} 41. Kg4 {[%clk 0:00:59.7]} 41... Rh2
{[%clk 0:01:03.4]} 42. Rd7+ {[%clk 0:00:53.8]} 42... Kf6 {[%clk 0:01:03.2]} 43.
Rd6+ {[%clk 0:00:43.4]} 43... Ke5 {[%clk 0:01:02.4]} 44. Re6+ {[%clk 0:00:42]}
44... Kd4 {[%clk 0:01:02.7]} 45. Re7 {[%clk 0:00:18.7]} 45... Rxc2 {[%clk
0:01:00.4]} 46. Kf3 {[%clk 0:00:17.8]} 46... Rc3+ {[%clk 0:00:59.2]} 47. Kf4
{[%clk 0:00:17.9]} 47... Rxb3 {[%clk 0:00:58.6]} 48. Rxg7 {[%clk 0:00:18.2]}
48... Rb1 {[%clk 0:00:57.3]} 49. f6 {[%clk 0:00:15.9]} 49... Rf1+ {[%clk
0:00:55.4]} 50. Kg5 {[%clk 0:00:16.3]} 50... c5 {[%clk 0:00:55.7]} 51. Rxb7
{[%clk 0:00:14.4]} 51... c4 {[%clk 0:00:56.2]} 52. f7 {[%clk 0:00:11.6]} 52...
c3 {[%clk 0:00:55.9]} 53. Kg6 {[%clk 0:00:11.8]} 53... c2 {[%clk 0:00:54]} 54.
Rc7 {[%clk 0:00:12.4]} 54... Kd3 {[%clk 0:00:54.3]} 55. Rc5 {[%clk 0:00:13]}
55... d4 {[%clk 0:00:50.8]} 56. Kg7 {[%clk 0:00:09.7]} 56... Kd2 {[%clk
0:00:49.2]} 0-1

[Event "Late-Titled-Tuesday-Blitz-September-12-2023"]
[Site "Chess.com"]
[Date "2023.09.12"]
[Round "7"]
[White "FeketeBarika"]
[Black "carloseduar100"]
[Result "0-1"]
[WhiteElo "2360"]
[BlackElo "2293"]
[TimeControl "180+1"]
[EndTime "15:14:01 PDT"]
[Termination "carloseduar100 won by resignation"]

1. Nf3 {[%clk 0:02:59.5]} 1... Nf6 {[%clk 0:02:52.7]} 2. c4 {[%clk 0:02:54.5]}
2... g6 {[%clk 0:02:53.6]} 3. g3 {[%clk 0:02:54.8]} 3... Bg7 {[%clk 0:02:54.1]}
4. Bg2 {[%clk 0:02:55.5]} 4... O-O {[%clk 0:02:54.7]} 5. Nc3 {[%clk 0:02:55.7]}
5... d6 {[%clk 0:02:55.6]} 6. O-O {[%clk 0:02:56.1]} 6... Nbd7 {[%clk
0:02:56.5]} 7. d3 {[%clk 0:02:55.5]} 7... e5 {[%clk 0:02:57.2]} 8. Rb1 {[%clk
0:02:54.9]} 8... a6 {[%clk 0:02:58]} 9. b4 {[%clk 0:02:55]} 9... c6 {[%clk
0:02:58.4]} 10. a4 {[%clk 0:02:54.8]} 10... Re8 {[%clk 0:02:58.5]} 11. Qb3
{[%clk 0:02:53.9]} 11... Qc7 {[%clk 0:02:53]} 12. Ba3 {[%clk 0:02:53.4]} 12...
h6 {[%clk 0:02:43.3]} 13. b5 {[%clk 0:02:52.4]} 13... axb5 {[%clk 0:02:44.2]}
14. axb5 {[%clk 0:02:52.7]} 14... c5 {[%clk 0:02:37.7]} 15. b6 {[%clk
0:02:44.6]} 15... Qxb6 {[%clk 0:02:35]} 16. Qxb6 {[%clk 0:02:32.9]} 16... Nxb6
{[%clk 0:02:35.7]} 17. Rxb6 {[%clk 0:02:28.8]} 17... Rxa3 {[%clk 0:02:34.8]} 18.
Nb5 {[%clk 0:02:28.7]} 18... Ra2 {[%clk 0:02:35]} 19. Nxd6 {[%clk 0:02:27.8]}
19... Rxe2 {[%clk 0:02:34.1]} 20. Nxe8 {[%clk 0:02:27.1]} 20... Nxe8 {[%clk
0:02:33.2]} 21. Ne1 {[%clk 0:02:16.7]} 21... Nc7 {[%clk 0:02:16.8]} 22. Bxb7
{[%clk 0:02:14.9]} 22... Bxb7 {[%clk 0:02:14.2]} 23. Rxb7 {[%clk 0:02:15.8]}
23... Ne6 {[%clk 0:02:15.1]} 24. Rb8+ {[%clk 0:02:13.8]} 24... Kh7 {[%clk
0:02:14.8]} 25. Rc8 {[%clk 0:02:12.2]} 25... h5 {[%clk 0:02:13.9]} 26. h3 {[%clk
0:02:10.9]} 26... g5 {[%clk 0:02:13]} 27. Kg2 {[%clk 0:02:09.5]} 27... h4 {[%clk
0:02:12.7]} 28. Nf3 {[%clk 0:02:04.9]} 28... hxg3 {[%clk 0:02:11.7]} 29. Kxg3
{[%clk 0:02:05.2]} 29... Kg6 {[%clk 0:02:09.4]} 30. h4 {[%clk 0:02:04.6]} 30...
gxh4+ {[%clk 0:01:38.5]} 31. Nxh4+ {[%clk 0:02:00.8]} 31... Kf6 {[%clk
0:01:39.2]} 32. Nf3 {[%clk 0:01:54.6]} 32... Bh6 {[%clk 0:01:37.9]} 33. Rh1
{[%clk 0:01:50.6]} 33... Bf4+ {[%clk 0:01:37.9]} 34. Kg2 {[%clk 0:01:51.3]}
34... Be3 {[%clk 0:01:38.8]} 35. Rf1 {[%clk 0:01:40.9]} 35... Bh6 {[%clk
0:01:21.9]} 36. Kg3 {[%clk 0:01:40]} 36... Bf4+ {[%clk 0:01:22]} 37. Kg4 {[%clk
0:01:40.5]} 37... Rc2 {[%clk 0:01:15.5]} 38. Rc6 {[%clk 0:01:34.1]} 38... Rc3
{[%clk 0:01:14.1]} 39. Rd1 {[%clk 0:01:32.8]} 39... Rc2 {[%clk 0:01:14.5]} 40.
d4 {[%clk 0:01:26.1]} 40... cxd4 {[%clk 0:01:13]} 41. c5 {[%clk 0:01:21.3]}
41... Rxf2 {[%clk 0:01:04.8]} 42. Rc8 {[%clk 0:01:09.1]} 42... Rg2+ {[%clk
0:01:04]} 43. Kh4 {[%clk 0:01:07.7]} 43... Rf2 {[%clk 0:00:46.6]} 44. Ng1 {[%clk
0:00:55.6]} 44... e4 {[%clk 0:00:40]} 45. c6 {[%clk 0:00:54.1]} 45... d3 {[%clk
0:00:39.3]} 46. Nh3 {[%clk 0:00:52]} 46... Rh2 {[%clk 0:00:39.7]} 47. Kg4 {[%clk
0:00:51.1]} 47... Be5 {[%clk 0:00:36.6]} 48. Rf1+ {[%clk 0:00:50.1]} 48... Ke7
{[%clk 0:00:37.1]} 49. Kf5 {[%clk 0:00:43.2]} 49... Bd6 {[%clk 0:00:34.5]} 50.
Nf2 {[%clk 0:00:41.1]} 50... Rxf2+ {[%clk 0:00:29.1]} 51. Rxf2 {[%clk
0:00:40.7]} 51... e3 {[%clk 0:00:29.6]} 52. Rg2 {[%clk 0:00:37.3]} 52... d2
{[%clk 0:00:28.9]} 53. c7 {[%clk 0:00:36]} 53... Bxc7 {[%clk 0:00:24.1]} 54. Rg1
{[%clk 0:00:33.1]} 54... e2 {[%clk 0:00:24.6]} 0-1

[Event "Late-Titled-Tuesday-Blitz-September-12-2023"]
[Site "Chess.com"]
[Date "2023.09.12"]
[Round "7"]
[White "Rutricks"]
[Black "andrzej"]
[Result "1-0"]
[WhiteElo "2694"]
[BlackElo "2437"]
[TimeControl "180+1"]
[EndTime "15:14:02 PDT"]
[Termination "Rutricks won on time"]

1. Nf3 {[%clk 0:02:49]} 1... d5 {[%clk 0:02:59.5]} 2. b3 {[%clk 0:02:49.2]} 2...
c5 {[%clk 0:02:59.4]} 3. Bb2 {[%clk 0:02:50.1]} 3... Nf6 {[%clk 0:02:59.7]} 4.
e3 {[%clk 0:02:50.7]} 4... g6 {[%clk 0:02:59.8]} 5. Bb5+ {[%clk 0:02:50.9]} 5...
Nbd7 {[%clk 0:02:59.8]} 6. c4 {[%clk 0:02:49.5]} 6... dxc4 {[%clk 0:02:59.5]} 7.
Bxc4 {[%clk 0:02:48.4]} 7... Bg7 {[%clk 0:02:59.4]} 8. O-O {[%clk 0:02:47.8]}
8... O-O {[%clk 0:02:59.3]} 9. Nc3 {[%clk 0:02:48.4]} 9... a6 {[%clk 0:02:48.5]}
10. Rc1 {[%clk 0:02:46.5]} 10... b5 {[%clk 0:02:47.8]} 11. Be2 {[%clk
0:02:42.7]} 11... Bb7 {[%clk 0:02:47.9]} 12. d4 {[%clk 0:02:34.6]} 12... cxd4
{[%clk 0:02:46.2]} 13. Nxd4 {[%clk 0:02:26.8]} 13... Qb6 {[%clk 0:02:43.6]} 14.
Bf3 {[%clk 0:02:24.8]} 14... Rac8 {[%clk 0:02:34.8]} 15. Ba3 {[%clk 0:02:06.4]}
15... Rxc3 {[%clk 0:02:02.9]} 16. Rxc3 {[%clk 0:02:02.3]} 16... b4 {[%clk
0:02:03]} 17. Bxb4 {[%clk 0:02:02.7]} 17... Qxb4 {[%clk 0:02:03]} 18. Rc7 {[%clk
0:02:03.6]} 18... Bxf3 {[%clk 0:01:57]} 19. Qxf3 {[%clk 0:02:04.5]} 19... Ne5
{[%clk 0:01:51.2]} 20. Qe2 {[%clk 0:02:04.2]} 20... Nd5 {[%clk 0:01:43]} 21. Rc2
{[%clk 0:02:02.7]} 21... h5 {[%clk 0:01:27.5]} 22. h3 {[%clk 0:01:54.5]} 22...
a5 {[%clk 0:01:24.1]} 23. f4 {[%clk 0:01:54.3]} 23... Nd7 {[%clk 0:01:21.3]} 24.
Nc6 {[%clk 0:01:51.6]} 24... Qd6 {[%clk 0:01:17.9]} 25. Rd1 {[%clk 0:01:51.1]}
25... e6 {[%clk 0:01:12.9]} 26. e4 {[%clk 0:01:47.6]} 26... Nxf4 {[%clk
0:00:34.5]} 27. Rxd6 {[%clk 0:01:47.1]} 27... Nxe2+ {[%clk 0:00:34.4]} 28. Rxe2
{[%clk 0:01:48]} 28... Nc5 {[%clk 0:00:31.4]} 29. Nxa5 {[%clk 0:01:41.4]} 29...
Be5 {[%clk 0:00:31.3]} 30. Rd1 {[%clk 0:01:40.6]} 30... h4 {[%clk 0:00:31]} 31.
Nc4 {[%clk 0:01:40.7]} 31... Bg3 {[%clk 0:00:30.3]} 32. b4 {[%clk 0:00:57.4]}
32... Na4 {[%clk 0:00:29.3]} 33. Rc2 {[%clk 0:00:57.8]} 33... Rc8 {[%clk
0:00:23.7]} 34. b5 {[%clk 0:00:43.1]} 34... Nb6 {[%clk 0:00:15.4]} 35. Rdc1
{[%clk 0:00:41.3]} 35... Nd7 {[%clk 0:00:05.7]} 36. b6 {[%clk 0:00:26.5]} 36...
Bf4 {[%clk 0:00:05.9]} 37. Rb1 {[%clk 0:00:26.5]} 37... Rb8 {[%clk 0:00:06.2]}
38. a4 {[%clk 0:00:25.5]} 38... Nc5 {[%clk 0:00:03.9]} 39. a5 {[%clk 0:00:23.5]}
39... Nxe4 {[%clk 0:00:04.2]} 40. a6 {[%clk 0:00:20.5]} 40... Bg3 {[%clk
0:00:03]} 41. a7 {[%clk 0:00:20.5]} 41... Ra8 {[%clk 0:00:02.6]} 42. Ra2 {[%clk
0:00:11.8]} 1-0

[Event "Late-Titled-Tuesday-Blitz-September-12-2023"]
[Site "Chess.com"]
[Date "2023.09.12"]
[Round "7"]
[White "K_A_S_T_O_R"]
[Black "Mackster23"]
[Result "1-0"]
[WhiteElo "2931"]
[BlackElo "2546"]
[TimeControl "180+1"]
[EndTime "15:14:02 PDT"]
[Termination "K_A_S_T_O_R won by resignation"]

1. e4 {[%clk 0:03:00.9]} 1... e6 {[%clk 0:02:58.2]} 2. d4 {[%clk 0:03:00.4]}
2... d5 {[%clk 0:02:58.5]} 3. Nc3 {[%clk 0:03:00.4]} 3... Bb4 {[%clk 0:02:58.2]}
4. e5 {[%clk 0:03:00.5]} 4... c5 {[%clk 0:02:58.7]} 5. Bd2 {[%clk 0:02:59.5]}
5... Nh6 {[%clk 0:02:58]} 6. Nb5 {[%clk 0:02:58.8]} 6... Bxd2+ {[%clk
0:02:57.4]} 7. Qxd2 {[%clk 0:02:59.4]} 7... O-O {[%clk 0:02:58]} 8. c3 {[%clk
0:02:57.1]} 8... f6 {[%clk 0:02:45.4]} 9. f4 {[%clk 0:02:47.5]} 9... a6 {[%clk
0:02:30.1]} 10. Nd6 {[%clk 0:02:44.4]} 10... Nc6 {[%clk 0:02:28.1]} 11. Nf3
{[%clk 0:02:43.7]} 11... cxd4 {[%clk 0:02:10.4]} 12. cxd4 {[%clk 0:02:42.5]}
12... fxe5 {[%clk 0:02:05.1]} 13. dxe5 {[%clk 0:02:38.7]} 13... Ng4 {[%clk
0:01:19.2]} 14. h3 {[%clk 0:02:04]} 14... Ngxe5 {[%clk 0:01:17.8]} 15. fxe5
{[%clk 0:02:04.5]} 15... Rxf3 {[%clk 0:01:17.5]} 16. gxf3 {[%clk 0:02:00.1]}
16... Nxe5 {[%clk 0:01:17.7]} 17. Qb4 {[%clk 0:01:52.9]} 17... a5 {[%clk
0:01:07.1]} 18. Qa3 {[%clk 0:01:52]} 18... Qh4+ {[%clk 0:01:05.4]} 19. Ke2
{[%clk 0:01:41.9]} 19... Bd7 {[%clk 0:00:57.1]} 20. Qe3 {[%clk 0:01:34.5]} 20...
Qh5 {[%clk 0:00:40.4]} 21. Bg2 {[%clk 0:01:20]} 21... Ra6 {[%clk 0:00:29.7]} 22.
Qa3 {[%clk 0:00:53.9]} 22... Qg6 {[%clk 0:00:24.8]} 23. Kf1 {[%clk 0:00:45.7]}
23... Qc2 {[%clk 0:00:18.1]} 24. Qe3 {[%clk 0:00:31.7]} 24... Qxb2 {[%clk
0:00:11.9]} 25. Re1 {[%clk 0:00:30.2]} 25... Ng6 {[%clk 0:00:08]} 26. h4 {[%clk
0:00:23.2]} 26... Rxd6 {[%clk 0:00:07.5]} 27. h5 {[%clk 0:00:23.4]} 27... Nf8
{[%clk 0:00:06.9]} 28. h6 {[%clk 0:00:23.6]} 28... g6 {[%clk 0:00:06.7]} 29. Qe5
{[%clk 0:00:23.3]} 29... Qxe5 {[%clk 0:00:06.6]} 30. Rxe5 {[%clk 0:00:24.2]}
30... Bb5+ {[%clk 0:00:06.7]} 31. Kf2 {[%clk 0:00:24.3]} 31... Nd7 {[%clk
0:00:07.4]} 32. Ree1 {[%clk 0:00:24.3]} 32... e5 {[%clk 0:00:07.4]} 33. Bh3
{[%clk 0:00:24.5]} 33... d4 {[%clk 0:00:04.7]} 34. Bxd7 {[%clk 0:00:24]} 34...
Bxd7 {[%clk 0:00:05]} 35. Rxe5 {[%clk 0:00:24.7]} 35... b6 {[%clk 0:00:05.1]}
36. Re7 {[%clk 0:00:24.7]} 36... Bf5 {[%clk 0:00:04]} 37. Rg7+ {[%clk
0:00:24.7]} 37... Kf8 {[%clk 0:00:03.8]} 38. Rc1 {[%clk 0:00:25.1]} 38... d3
{[%clk 0:00:03.6]} 39. Ke3 {[%clk 0:00:24]} 39... Re6+ {[%clk 0:00:02.7]} 40.
Kf4 {[%clk 0:00:23.3]} 40... d2 {[%clk 0:00:02.4]} 41. Rd1 {[%clk 0:00:20.3]}
41... Rd6 {[%clk 0:00:02.5]} 42. Ke3 {[%clk 0:00:20.5]} 42... Rd3+ {[%clk
0:00:01.7]} 43. Ke2 {[%clk 0:00:20.9]} 43... Rd6 {[%clk 0:00:01.1]} 44. Rxd2
{[%clk 0:00:20.7]} 44... Re6+ {[%clk 0:00:02]} 45. Kf2 {[%clk 0:00:21.1]} 45...
Re7 {[%clk 0:00:02.6]} 46. Rd8+ {[%clk 0:00:20.8]} 46... Re8 {[%clk 0:00:02.9]}
47. Rxe8+ {[%clk 0:00:21.2]} 47... Kxe8 {[%clk 0:00:03.8]} 48. Rxh7 {[%clk
0:00:21.6]} 1-0

[Event "Late-Titled-Tuesday-Blitz-September-12-2023"]
[Site "Chess.com"]
[Date "2023.09.12"]
[Round "7"]
[White "kuli4ik"]
[Black "Jospem"]
[Result "1/2-1/2"]
[WhiteElo "2952"]
[BlackElo "3095"]
[TimeControl "180+1"]
[EndTime "15:14:03 PDT"]
[Termination "Game drawn by repetition"]

1. Nf3 {[%clk 0:02:59.7]} 1... c5 {[%clk 0:02:53.8]} 2. e3 {[%clk 0:02:49.7]}
2... Nf6 {[%clk 0:02:53.5]} 3. d4 {[%clk 0:02:50.6]} 3... g6 {[%clk 0:02:54.1]}
4. d5 {[%clk 0:02:50.1]} 4... d6 {[%clk 0:02:47.4]} 5. Nc3 {[%clk 0:02:50.2]}
5... Bg4 {[%clk 0:02:46.6]} 6. h3 {[%clk 0:02:43.8]} 6... Bxf3 {[%clk 0:02:46]}
7. Qxf3 {[%clk 0:02:42.8]} 7... a6 {[%clk 0:02:46.8]} 8. a4 {[%clk 0:02:42]}
8... Nbd7 {[%clk 0:02:47.4]} 9. Be2 {[%clk 0:02:38.2]} 9... Rc8 {[%clk
0:02:45.5]} 10. O-O {[%clk 0:02:38.1]} 10... Bg7 {[%clk 0:02:44.1]} 11. e4
{[%clk 0:02:37.3]} 11... O-O {[%clk 0:02:41.9]} 12. Qg3 {[%clk 0:02:34.9]} 12...
c4 {[%clk 0:02:36.1]} 13. Be3 {[%clk 0:02:30.4]} 13... b5 {[%clk 0:02:36.2]} 14.
f3 {[%clk 0:02:12.9]} 14... b4 {[%clk 0:02:33.4]} 15. Nd1 {[%clk 0:02:10]} 15...
Qc7 {[%clk 0:02:31]} 16. a5 {[%clk 0:02:06.4]} 16... e6 {[%clk 0:02:28]} 17.
dxe6 {[%clk 0:02:02.8]} 17... fxe6 {[%clk 0:02:28.9]} 18. Qe1 {[%clk 0:01:56.8]}
18... Qb7 {[%clk 0:02:25.6]} 19. Ra4 {[%clk 0:01:53.9]} 19... d5 {[%clk
0:02:07.1]} 20. Rxb4 {[%clk 0:01:40.8]} 20... Qc7 {[%clk 0:02:07.4]} 21. exd5
{[%clk 0:01:05.9]} 21... exd5 {[%clk 0:02:08.3]} 22. Bd4 {[%clk 0:01:00]} 22...
Rce8 {[%clk 0:01:40.1]} 23. Qf2 {[%clk 0:00:45.9]} 23... Ne4 {[%clk 0:01:31.3]}
24. fxe4 {[%clk 0:00:33.9]} 24... Rxf2 {[%clk 0:01:29.6]} 25. Bxf2 {[%clk
0:00:34.8]} 25... Nf6 {[%clk 0:01:11.8]} 26. Nc3 {[%clk 0:00:32.7]} 26... Qe7
{[%clk 0:00:31.7]} 27. Rb6 {[%clk 0:00:25]} 27... Qe5 {[%clk 0:00:30.7]} 28.
exd5 {[%clk 0:00:22.1]} 28... Rc8 {[%clk 0:00:29.4]} 29. d6 {[%clk 0:00:20.2]}
29... Qxa5 {[%clk 0:00:26.9]} 30. Rd1 {[%clk 0:00:19]} 30... Nd7 {[%clk
0:00:22.6]} 31. Rb7 {[%clk 0:00:19]} 31... Rd8 {[%clk 0:00:23.1]} 32. Bxc4+
{[%clk 0:00:16.5]} 32... Kh8 {[%clk 0:00:23.7]} 33. Bb3 {[%clk 0:00:10.6]} 33...
Qh5 {[%clk 0:00:22.2]} 34. Re1 {[%clk 0:00:08.7]} 34... Qf5 {[%clk 0:00:21.6]}
35. Re7 {[%clk 0:00:07.7]} 35... Rf8 {[%clk 0:00:19.8]} 36. Nd1 {[%clk
0:00:06.7]} 36... Qh5 {[%clk 0:00:17]} 37. Rbxd7 {[%clk 0:00:05.9]} 37... Qxd1+
{[%clk 0:00:17]} 38. Kh2 {[%clk 0:00:06.8]} 38... Rxf2 {[%clk 0:00:08.3]} 39.
Rxg7 {[%clk 0:00:07]} 39... Rxg2+ {[%clk 0:00:08.7]} 40. Kxg2 {[%clk 0:00:06.9]}
40... Qe2+ {[%clk 0:00:09.4]} 41. Kg3 {[%clk 0:00:07.7]} 41... Qe3+ {[%clk
0:00:10]} 42. Kg2 {[%clk 0:00:07.5]} 42... Qe2+ {[%clk 0:00:10.5]} 43. Kg1
{[%clk 0:00:08.2]} 43... Qe1+ {[%clk 0:00:11]} 44. Kg2 {[%clk 0:00:08.7]} 44...
Qe2+ {[%clk 0:00:11.9]} 1/2-1/2

[Event "Late-Titled-Tuesday-Blitz-September-12-2023"]
[Site "Chess.com"]
[Date "2023.09.12"]
[Round "7"]
[White "Mikhail_Golubev"]
[Black "KaydenTroffChess"]
[Result "0-1"]
[WhiteElo "2593"]
[BlackElo "2742"]
[TimeControl "180+1"]
[EndTime "15:14:04 PDT"]
[Termination "KaydenTroffChess won on time"]

1. e4 {[%clk 0:02:19.1]} 1... c5 {[%clk 0:02:58.8]} 2. Nf3 {[%clk 0:02:18.4]}
2... g6 {[%clk 0:02:59]} 3. d4 {[%clk 0:02:17.6]} 3... cxd4 {[%clk 0:02:59.8]}
4. Nxd4 {[%clk 0:02:18]} 4... Bg7 {[%clk 0:02:59.9]} 5. Nc3 {[%clk 0:02:18.1]}
5... Nc6 {[%clk 0:02:59.6]} 6. Be3 {[%clk 0:02:18]} 6... Nf6 {[%clk 0:02:59.8]}
7. Nxc6 {[%clk 0:02:17.7]} 7... bxc6 {[%clk 0:02:59.4]} 8. e5 {[%clk 0:02:18.1]}
8... Ng8 {[%clk 0:02:59.3]} 9. Bd4 {[%clk 0:02:18.5]} 9... c5 {[%clk 0:02:40.8]}
10. Bxc5 {[%clk 0:02:18.1]} 10... Qc7 {[%clk 0:02:39.9]} 11. Bd4 {[%clk
0:02:08.8]} 11... Bxe5 {[%clk 0:02:37.1]} 12. Nd5 {[%clk 0:01:45.1]} 12... Qa5+
{[%clk 0:02:24.4]} 13. Bc3 {[%clk 0:01:32.5]} 13... Bxc3+ {[%clk 0:02:23.2]} 14.
Nxc3 {[%clk 0:01:32.9]} 14... Rb8 {[%clk 0:02:06.3]} 15. Qd4 {[%clk 0:01:32.4]}
15... Nf6 {[%clk 0:02:03.1]} 16. O-O-O {[%clk 0:01:27.3]} 16... O-O {[%clk
0:01:54.7]} 17. Bc4 {[%clk 0:01:21.5]} 17... d6 {[%clk 0:01:43.8]} 18. Rhe1
{[%clk 0:01:05.4]} 18... Ng4 {[%clk 0:01:21.5]} 19. Bb3 {[%clk 0:00:53.8]} 19...
Ne5 {[%clk 0:01:12.2]} 20. Nd5 {[%clk 0:00:49.4]} 20... Rb7 {[%clk 0:01:09.8]}
21. f4 {[%clk 0:00:32.4]} 21... Nc6 {[%clk 0:01:09.6]} 22. Qc4 {[%clk
0:00:31.9]} 22... Qc5 {[%clk 0:00:58.5]} 23. Qxc5 {[%clk 0:00:30.4]} 23... dxc5
{[%clk 0:00:59.4]} 24. Re3 {[%clk 0:00:27.2]} 24... Be6 {[%clk 0:00:55.8]} 25.
Rc3 {[%clk 0:00:27]} 25... Nd4 {[%clk 0:00:25.9]} 26. Rxc5 {[%clk 0:00:24.8]}
26... Nf5 {[%clk 0:00:19.8]} 27. g4 {[%clk 0:00:20.7]} 27... Nd6 {[%clk
0:00:19.4]} 28. h3 {[%clk 0:00:16.2]} 28... Ne4 {[%clk 0:00:18.7]} 29. Ra5
{[%clk 0:00:16]} 29... Nf2 {[%clk 0:00:18.6]} 30. Re1 {[%clk 0:00:14.6]} 30...
Nxh3 {[%clk 0:00:18]} 31. f5 {[%clk 0:00:13.8]} 31... gxf5 {[%clk 0:00:18.4]}
32. gxf5 {[%clk 0:00:14]} 32... Bxd5 {[%clk 0:00:17.5]} 33. Bxd5 {[%clk
0:00:14]} 33... Rc7 {[%clk 0:00:18]} 34. c3 {[%clk 0:00:12.1]} 34... Nf4 {[%clk
0:00:17.8]} 35. Bb3 {[%clk 0:00:11.9]} 35... Nd3+ {[%clk 0:00:17.8]} 36. Kd2
{[%clk 0:00:11.3]} 36... Nxe1 {[%clk 0:00:18.3]} 37. Kxe1 {[%clk 0:00:12.1]}
37... Kg7 {[%clk 0:00:18.8]} 38. Ke2 {[%clk 0:00:11.8]} 38... Rd8 {[%clk
0:00:19.2]} 39. Ke3 {[%clk 0:00:12]} 39... Kf6 {[%clk 0:00:19.1]} 40. Ra6+
{[%clk 0:00:11.4]} 40... Rd6 {[%clk 0:00:19.3]} 41. Ra5 {[%clk 0:00:10.9]} 41...
h5 {[%clk 0:00:18.6]} 42. a3 {[%clk 0:00:07.8]} 42... Rb6 {[%clk 0:00:17.4]} 43.
Bd5 {[%clk 0:00:06.9]} 43... Rxb2 {[%clk 0:00:17.4]} 44. Bf3 {[%clk 0:00:07.4]}
44... Rxc3+ {[%clk 0:00:16.6]} 45. Kf4 {[%clk 0:00:07.1]} 45... Rf2 {[%clk
0:00:16.3]} 46. Ra6+ {[%clk 0:00:05.1]} 46... Kg7 {[%clk 0:00:16.6]} 0-1